[Event "Anderssen Festival 2019"]
[Site "Wroclaw"]
[Date "2019.08.08"]
[Round "6.16"]
[White "Jablonska, Sabina"]
[Black "Seredyn, Dominik"]
[Result "1-0"]
[ECO "D00"]
[WhiteElo "1963"]
[BlackElo "1737"]
[Annotator "NA"]
[PlyCount "67"]
[EventDate "2019.08.05"]
[EventType "swiss"]
[EventCountry "POL"]
[SourceTitle "playchess.com"]
[Source "ChessBase"]
[SourceQuality "1"]
[TimeControl "40/5400+30:900+30"]

1. d4 {[%emt 0:00:00]} d5 {[%emt 0:00:00]} 2. Bf4 {[%emt 0:00:00]} Nf6 {[%emt 0:00:00]} 3. e3 {[%emt 0:00:02]} c5 {[%emt 0:00:00]} 4. c3 {[%emt 0:00:11]} Nc6 {[%emt 0:00:05]} 5. Nd2 {[%emt 0:01:19]} Bf5 {[%emt 0:00:47]} 6. Qb3 {[%emt 0:11:28]} Qd7 {[%emt 0:03:09]} 7. Ngf3 {[%emt 0:09:27]} c4 {[%emt 0:00:16]} 8. Qd1 {[%emt 0:02:41]} e6 {[%emt 0:01:17]} 9. Ne5 {[%emt 0:10:55]} Nxe5 {[%emt 0:00:17]} 10. dxe5 {[%emt 0:00:07]} Ne4 {[%emt 0:00:55]} 11. Nxe4 {[%emt 0:02:14]} Bxe4 {[%emt 0:00:09]} 12. f3 {[%emt 0:05:40]} Bg6 {[%emt 0:00:13]} 13. a4 {[%emt 0:05:51]} a6 {[%emt 0:05:30]} 14. b3 {[%emt 0:03:39]} cxb3 {[%emt 0:01:36]} 15. Qxb3 {[%emt 0:00:07]} Be7 {[%emt 0:04:30]} 16. h4 {[%emt 0:08:06]} h6 {[%emt 0:00:54]} 17. c4 {[%emt 0:04:32]} dxc4 {[%emt 0:02:25]} 18. Bxc4 {[%emt 0:00:18]} O-O {[%emt 0:01:40]} 19. h5 {[%emt 0:01:31]} Bh7 {[%emt 0:00:08]} 20. O-O {[%emt 0:03:02]} Rfd8 {[%emt 0:03:49]} 21. Rfd1 {[%emt 0:11:25]} Qc7 {[%emt 0:03:15]} 22. e4 {[%emt 0:01:01]} Bc5+ {[%emt 0:00:28]} 23. Kh1 {[%emt 0:07:45]} Rac8 {[%emt 0:05:34]} 24. Rxd8+ {[%emt 0:02:58]} Rxd8 {[%emt 0:01:03]} 25. Rd1 {[%emt 0:03:59]} Kh8 {[%emt 0:03:34]} 26. g4 {[%emt 0:01:59]} Rxd1+ {[%emt 0:01:49]} 27. Qxd1 {[%emt 0:00:06]} Qe7 {[%emt 0:00:05]} 28. Bg3 {[%emt 0:01:13]} g6 {[%emt 0:05:16]} 29. hxg6 {[%emt 0:00:33]} Bxg6 {[%emt 0:00:08]} 30. Kg2 {[%emt 0:00:08]} Kg7 {[%emt 0:02:09]} 31. Bf4 {[%emt 0:01:45]} Qh4 {[%emt 0:01:24]} 32. Qd2 {[%emt 0:00:33]} h5 {[%emt 0:15:02]} 33. Bg5 {[%emt 0:00:36]} Bb4 {[%emt 0:00:26]} 34. Bf6+ {[%emt 0:00:15]} 1-0

[Event "Anderssen Festival 2019"]
[Site "Wroclaw"]
[Date "2019.08.08"]
[Round "6.17"]
[White "Szajda, Marcin"]
[Black "Pokusinski, Antoni"]
[Result "1/2-1/2"]
[ECO "B17"]
[WhiteElo "1955"]
[BlackElo "1671"]
[Annotator "NA"]
[PlyCount "80"]
[EventDate "2019.08.05"]
[EventType "swiss"]
[EventCountry "POL"]
[SourceTitle "playchess.com"]
[Source "ChessBase"]
[SourceQuality "1"]
[TimeControl "40/5400+30:900+30"]

1. e4 c6 2. d4 d5 3. Nc3 dxe4 4. Nxe4 Nd7 5. Ng5 Ngf6 6. Bd3 e6 7. N1f3 Bd6 8. Qe2 Qe7 9. Bd2 h6 10. Ne4 Nxe4 11. Qxe4 Nf6 12. Qe2 b6 13. O-O-O Bb7 14. Kb1 O-O-O 15. Ne5 Bxe5 16. dxe5 Nd5 17. Ba6 Bxa6 18. Qxa6+ Qb7 19. Qxb7+ Kxb7 20. c4 Ne7 21. Bc3 Kc7 22. Kc2 c5 23. Rxd8 Rxd8 24. Rd1 Rxd1 25. Kxd1 Kc6 26. Ke2 b5 27. b3 bxc4 28. bxc4 Nc8 29. Kd3 Ne7 30. f4 h5 31. g3 Nf5 32. Be1 g6 33. h3 a6 34. g4 hxg4 35. hxg4 Nh6 36. g5 Nf5 37. Bf2 Kb6 38. Be1 Nd4 39. Bc3 Nc6 40. Kc2 Ne7 1/2-1/2

[Event "Anderssen Festival 2019"]
[Site "Wroclaw"]
[Date "2019.08.08"]
[Round "6.18"]
[White "Krawiec, Grzegorz"]
[Black "Korpalski, Maciej"]
[Result "0-1"]
[ECO "B91"]
[WhiteElo "1816"]
[BlackElo "1954"]
[Annotator "NA"]
[PlyCount "42"]
[EventDate "2019.08.05"]
[EventType "swiss"]
[EventCountry "POL"]
[SourceTitle "playchess.com"]
[Source "ChessBase"]
[SourceQuality "1"]
[TimeControl "40/5400+30:900+30"]

1. e4 {[%emt 0:00:00]} c5 {[%emt 0:00:03]} 2. Nf3 {[%emt 0:00:00]} d6 {[%emt 0:00:05]} 3. d4 {[%emt 0:00:00]} cxd4 {[%emt 0:00:05]} 4. Nxd4 {[%emt 0:00:00]} Nf6 {[%emt 0:00:06]} 5. Nc3 {[%emt 0:00:00]} a6 {[%emt 0:00:06]} 6. g3 {[%emt 0:03:21]} e6 {[%emt 0:00:54]} 7. Bg2 {[%emt 0:03:32]} Be7 {[%emt 0:00:10]} 8. O-O {[%emt 0:00:21]} O-O {[%emt 0:00:06]} 9. Be3 {[%emt 0:00:21]} Qc7 {[%emt 0:06:49]} 10. Rc1 {[%emt 0:07:44]} Nc6 {[%emt 0:03:02]} 11. Qe2 {[%emt 0:05:38]} Rd8 {[%emt 0:06:36]} 12. Rfd1 {[%emt 0:01:21]} Na5 {[%emt 0:09:11]} 13. Bd2 {[%emt 0:13:16]} Nc4 {[%emt 0:02:00]} 14. b3 {[%emt 0:00:54]} Nxd2 {[%emt 0:01:23]} 15. Qxd2 {[%emt 0:00:06]} d5 {[%emt 0:05:05]} 16. exd5 {[%emt 0:02:40]} exd5 {[%emt 0:00:15]} 17. Nce2 {[%emt 0:06:04]} Bg4 {[%emt 0:08:24]} 18. c4 {[%emt 0:05:48]} Qb6 {[%emt 0:07:22]} 19. h3 {[%emt 0:11:53]} Bh5 {[%emt 0:12:45]} 20. Qg5 {[%emt 0:06:04]} h6 {[%emt 0:06:15]} 21. Qh4 {[%emt 0:00:39]} g5 0-1

[Event "Anderssen Festival 2019"]
[Site "Wroclaw"]
[Date "2019.08.08"]
[Round "6.19"]
[White "Pawicka, Magdalena"]
[Black "Barbier, Astrid"]
[Result "0-1"]
[ECO "B35"]
[WhiteElo "1700"]
[BlackElo "1941"]
[Annotator "NA"]
[PlyCount "51"]
[EventDate "2019.08.05"]
[EventType "swiss"]
[EventCountry "POL"]
[SourceTitle "playchess.com"]
[Source "ChessBase"]
[SourceQuality "1"]
[TimeControl "40/5400+30:900+30"]

1. e4 {[%emt 0:00:00]} c5 {[%emt 0:00:00]} 2. Nf3 {[%emt 0:00:00]} g6 {[%emt 0:00:00]} 3. d4 {[%emt 0:00:00]} cxd4 {[%emt 0:00:00]} 4. Nxd4 {[%emt 0:00:00]} Nc6 {[%emt 0:00:00]} 5. Nc3 {[%emt 0:00:06]} Bg7 {[%emt 0:00:00]} 6. Be3 {[%emt 0:00:07]} Nf6 {[%emt 0:00:00]} 7. Bc4 {[%emt 0:00:34]} O-O {[%emt 0:00:05]} 8. Bb3 {[%emt 0:00:03]} a5 {[%emt 0:00:04]} 9. O-O {[%emt 0:00:45]} a4 {[%emt 0:00:10]} 10. Nxa4 {[%emt 0:02:33]} Nxe4 {[%emt 0:00:14]} 11. Nb5 {[%emt 0:05:32]} Ra6 {[%emt 0:00:22]} 12. Re1 {[%emt 0:10:10]} d6 {[%emt 0:04:59]} 13. Nd4 {[%emt 0:07:23]} Nf6 {[%emt 0:05:17]} 14. Nxc6 {[%emt 0:05:02]} bxc6 {[%emt 0:02:58]} 15. Nc3 {[%emt 0:02:20]} h6 {[%emt 0:07:49]} 16. h3 {[%emt 0:03:11]} Kh7 {[%emt 0:05:17]} 17. Qf3 {[%emt 0:07:18]} d5 {[%emt 0:10:21]} 18. Bd4 {[%emt 0:08:37]} Nd7 {[%emt 0:02:03]} 19. Bxg7 {[%emt 0:00:32]} Kxg7 {[%emt 0:00:07]} 20. Qg3 {[%emt 0:05:08]} e5 {[%emt 0:04:18]} 21. f4 {[%emt 0:03:20]} e4 {[%emt 0:03:10]} 22. f5 {[%emt 0:02:02]} g5 {[%emt 0:03:02]} 23. Rf1 f6 {[%emt 0:00:30]} 24. Ne2 Ne5 {[%emt 0:00:30]} 25. Rad1 Qb6+ {[%emt 0:00:30]} 26. Kh1 0-1

[Event "Anderssen Festival 2019"]
[Site "Wroclaw"]
[Date "2019.08.08"]
[Round "6.20"]
[White "Slusarczyk, Anna"]
[Black "Krawiecki, Stanislaw"]
[Result "0-1"]
[ECO "D96"]
[WhiteElo "1328"]
[BlackElo "1923"]
[Annotator "NA"]
[PlyCount "82"]
[EventDate "2019.08.05"]
[EventType "swiss"]
[EventCountry "POL"]
[SourceTitle "playchess.com"]
[Source "ChessBase"]
[SourceQuality "1"]
[TimeControl "40/5400+30:900+30"]

1. d4 Nf6 2. c4 g6 3. Nc3 d5 4. Nf3 Bg7 5. Qb3 dxc4 6. Qxc4 O-O 7. Bf4 Na6 8. e4 c5 9. Rd1 Qa5 10. Bd2 cxd4 11. Nxd4 Qc5 12. Nb3 Qxc4 13. Bxc4 Nc7 14. O-O Be6 15. Bxe6 Nxe6 16. e5 Nd7 17. f4 Nb6 18. Be1 Rfd8 19. Bh4 Rxd1 20. Rxd1 Nxf4 21. g3 Nh3+ 22. Kg2 g5 23. Kxh3 gxh4 24. gxh4 Bxe5 25. Nc5 Bxc3 26. bxc3 Rc8 27. Rg1+ Kf8 28. Rg5 e6 29. Ne4 Ke7 30. Rg7 Rc4 31. Ng5 Rxc3+ 32. Kg4 h6 33. h5 Rc4+ 34. Kg3 hxg5 35. h6 Rh4 36. Rg8 Nd7 37. Ra8 Rxh6 38. Rxa7 b6 39. h3 Rh4 40. Ra3 f5 41. Kg2 g4 0-1

[Event "Anderssen Festival 2019"]
[Site "Wroclaw"]
[Date "2019.08.09"]
[Round "7.1"]
[White "Eggink, Ryszard"]
[Black "Gutenev, Alexander"]
[Result "1/2-1/2"]
[ECO "D81"]
[WhiteElo "2377"]
[BlackElo "2470"]
[Annotator "ChessBase"]
[PlyCount "69"]
[EventDate "2019.08.05"]
[EventType "swiss"]
[EventCountry "POL"]
[SourceTitle "playchess.com"]
[Source "ChessBase"]
[SourceQuality "1"]
[TimeControl "40/5400+30:900+30"]

1. d4 {[%emt 0:00:00]} Nf6 {[%emt 0:11:31]} 2. c4 {[%emt 0:00:00]} g6 {[%emt 0:00:21]} 3. Nc3 {[%emt 0:00:00]} d5 {[%emt 0:00:04]} 4. Qb3 {[%emt 0:00:00]} dxc4 {[%emt 0:00:19]} 5. Qxc4 {[%emt 0:00:00]} Bg7 {[%emt 0:00:13]} 6. e4 {[%emt 0:00:42]} O-O {[%emt 0:01:18]} 7. Bf4 {[%emt 0:01:40]} Na6 {[%emt 0:02:36]} 8. Be2 {[%emt 0:02:36]} c5 {[%emt 0:00:56]} 9. d5 {[%emt 0:04:45]} e6 {[%emt 0:04:04]} 10. Rd1 {[%emt 0:05:49]} exd5 {[%emt 0:01:35]} 11. exd5 {[%emt 0:00:01]} Bd7 {[%emt 0:08:53]} 12. Nf3 {[%emt 0:05:24]} Re8 {[%emt 0:01:38]} 13. a4 {[%emt 0:10:24]} Qb6 {[%emt 0:03:55]} 14. O-O {[%emt 0:09:51]} Nh5 {[%emt 0:00:18]} 15. Be3 {[%emt 0:01:52]} Qxb2 {[%emt 0:06:39]} 16. Nb5 {[%emt 0:00:41]} Bf8 {[%emt 0:01:03]} 17. g4 {[%emt 0:14:54]} Ng7 {[%emt 0:02:02]} 18. Rb1 {[%emt 0:07:47]} Qf6 {[%emt 0:00:30]} 19. Nc3 {[%emt 0:05:53]} Nb4 {[%emt 0:12:58]} 20. Ne4 {[%emt 0:01:35]} Rxe4 {[%emt 0:01:09]} 21. Qxe4 {[%emt 0:00:02]} Bxa4 {[%emt 0:02:01]} 22. Bxc5 {[%emt 0:12:57]} Bxc5 {[%emt 0:00:46]} 23. Rxb4 {[%emt 0:00:01]} Bxb4 {[%emt 0:05:05]} 24. Qxb4 {[%emt 0:00:02]} Re8 {[%emt 0:01:39]} 25. Qxa4 {[%emt 0:01:15]} Rxe2 {[%emt 0:00:03]} 26. Kg2 {[%emt 0:00:17]} h5 {[%emt 0:00:11]} 27. h3 {[%emt 0:00:24]} a6 {[%emt 0:04:02]} 28. Qc4 {[%emt 0:01:52]} Re7 {[%emt 0:02:34]} 29. Qc8+ {[%emt 0:02:16]} Ne8 {[%emt 0:03:40]} 30. Re1 {[%emt 0:01:44]} Kh7 {[%emt 0:03:27]} 31. Rxe7 {[%emt 0:04:26]} Qxe7 {[%emt 0:00:02]} 32. gxh5 {[%emt 0:00:01]} Nd6 {[%emt 0:07:39]} 33. hxg6+ {[%emt 0:00:02]} fxg6 {[%emt 0:00:08]} 34. Qg4 {[%emt 0:00:50]} Ne4 {[%emt 0:02:43]} 35. h4 {[%emt 0:01:32]} 1/2-1/2

[Event "Anderssen Festival 2019"]
[Site "Wroclaw"]
[Date "2019.08.09"]
[Round "7.2"]
[White "Skliarov, Viktor"]
[Black "Butkiewicz, Lukasz"]
[Result "1/2-1/2"]
[ECO "B47"]
[WhiteElo "2360"]
[BlackElo "2425"]
[Annotator "NA"]
[PlyCount "32"]
[EventDate "2019.08.05"]
[EventType "swiss"]
[EventCountry "POL"]
[SourceTitle "playchess.com"]
[Source "ChessBase"]
[SourceQuality "1"]
[TimeControl "40/5400+30:900+30"]

1. e4 {[%emt 0:00:00]} c5 {[%emt 0:00:00]} 2. Nf3 {[%emt 0:00:00]} e6 {[%emt 0:00:00]} 3. d4 {[%emt 0:00:04]} cxd4 {[%emt 0:00:00]} 4. Nxd4 {[%emt 0:00:05]} Nc6 {[%emt 0:00:00]} 5. Nc3 {[%emt 0:00:11]} Qc7 {[%emt 0:00:04]} 6. Be2 {[%emt 0:00:24]} a6 {[%emt 0:00:11]} 7. O-O {[%emt 0:00:32]} Nf6 {[%emt 0:00:23]} 8. Be3 {[%emt 0:00:08]} Be7 {[%emt 0:00:10]} 9. f4 {[%emt 0:00:35]} d6 {[%emt 0:00:08]} 10. Kh1 {[%emt 0:00:10]} O-O {[%emt 0:00:21]} 11. Qe1 {[%emt 0:00:05]} Nxd4 {[%emt 0:00:43]} 12. Bxd4 {[%emt 0:00:06]} b5 {[%emt 0:00:17]} 13. a3 {[%emt 0:01:56]} Bb7 {[%emt 0:00:32]} 14. Qg3 {[%emt 0:01:30]} Rad8 {[%emt 0:01:13]} 15. Rad1 {[%emt 0:04:18]} Rd7 {[%emt 0:06:17]} 16. Bd3 {[%emt 0:06:57]} Rfd8 {[%emt 0:25:27]} 1/2-1/2

[Event "Anderssen Festival 2019"]
[Site "Wroclaw"]
[Date "2019.08.09"]
[Round "7.4"]
[White "Lalic, Bogdan"]
[Black "Luberanski, Jakub"]
[Result "1-0"]
[ECO "E15"]
[WhiteElo "2411"]
[BlackElo "2010"]
[Annotator "NA"]
[PlyCount "75"]
[EventDate "2019.08.05"]
[EventType "swiss"]
[EventCountry "POL"]
[SourceTitle "playchess.com"]
[Source "ChessBase"]
[SourceQuality "1"]
[TimeControl "40/5400+30:900+30"]

1. d4 {[%emt 0:04:57]} Nf6 {[%emt 0:00:00]} 2. c4 {[%emt 0:00:06]} e6 {[%emt 0:00:00]} 3. Nf3 {[%emt 0:00:05]} b6 {[%emt 0:00:00]} 4. g3 {[%emt 0:00:08]} Ba6 {[%emt 0:00:00]} 5. Nbd2 {[%emt 0:00:12]} c6 {[%emt 0:01:15]} 6. Bg2 {[%emt 0:00:23]} d5 {[%emt 0:00:35]} 7. Qc2 {[%emt 0:00:40]} Be7 {[%emt 0:01:45]} 8. O-O {[%emt 0:00:18]} Nbd7 {[%emt 0:02:16]} 9. b3 {[%emt 0:01:01]} Rc8 {[%emt 0:00:28]} 10. e4 {[%emt 0:00:12]} dxe4 {[%emt 0:02:57]} 11. Nxe4 {[%emt 0:00:16]} Nxe4 {[%emt 0:01:30]} 12. Qxe4 {[%emt 0:00:07]} Nf6 {[%emt 0:00:02]} 13. Qc2 {[%emt 0:00:37]} O-O {[%emt 0:02:13]} 14. Rd1 {[%emt 0:00:34]} Bb7 {[%emt 0:02:39]} 15. Bf4 {[%emt 0:04:17]} Qe8 {[%emt 0:08:05]} 16. Ne5 {[%emt 0:01:37]} Nd7 {[%emt 0:01:11]} 17. c5 {[%emt 0:00:47]} Nxe5 {[%emt 0:01:25]} 18. Bxe5 {[%emt 0:00:05]} Qd7 {[%emt 0:02:46]} 19. h4 {[%emt 0:01:02]} Qd8 {[%emt 0:05:45]} 20. b4 {[%emt 0:01:28]} Bf6 {[%emt 0:01:44]} 21. Rac1 {[%emt 0:03:35]} Re8 {[%emt 0:05:28]} 22. Qa4 {[%emt 0:01:06]} Qe7 {[%emt 0:06:55]} 23. cxb6 {[%emt 0:10:00]} axb6 {[%emt 0:02:40]} 24. Bxc6 {[%emt 0:00:16]} Bxc6 {[%emt 0:21:06]} 25. Rxc6 {[%emt 0:00:06]} Rxc6 {[%emt 0:02:03]} 26. Qxc6 {[%emt 0:00:06]} Rd8 {[%emt 0:00:14]} 27. Bxf6 {[%emt 0:01:31]} Qxf6 {[%emt 0:00:04]} 28. Qxb6 {[%emt 0:00:25]} h6 {[%emt 0:00:29]} 29. a4 {[%emt 0:00:53]} Rc8 {[%emt 0:00:19]} 30. Qb7 {[%emt 0:02:05]} Rc3 {[%emt 0:05:27]} 31. a5 {[%emt 0:04:35]} Qf5 {[%emt 0:00:31]} 32. a6 {[%emt 0:04:18]} Qc2 {[%emt 0:00:07]} 33. Rf1 {[%emt 0:01:23]} Ra3 {[%emt 0:00:49]} 34. b5 {[%emt 0:00:20]} Qa4 {[%emt 0:00:12]} 35. Qe7 {[%emt 0:06:02]} Ra2 {[%emt 0:00:58]} 36. b6 {[%emt 0:05:14]} Qxa6 {[%emt 0:00:31]} 37. b7 {[%emt 0:00:07]} Rb2 {[%emt 0:02:12]} 38. Qe8+ {[%emt 0:00:21]} 1-0

[Event "Anderssen Festival 2019"]
[Site "Wroclaw"]
[Date "2019.08.09"]
[Round "7.5"]
[White "Czyz, Andrzej"]
[Black "Nowak, Mikolaj"]
[Result "0-1"]
[ECO "A03"]
[WhiteElo "2000"]
[BlackElo "2230"]
[Annotator "NA"]
[PlyCount "96"]
[EventDate "2019.08.05"]
[EventType "swiss"]
[EventCountry "POL"]
[SourceTitle "playchess.com"]
[Source "ChessBase"]
[SourceQuality "1"]
[TimeControl "40/5400+30:900+30"]

1. f4 {[%emt 0:00:00]} d5 {[%emt 0:00:00]} 2. c4 {[%emt 0:00:00]} c6 {[%emt 0:00:09]} 3. e3 {[%emt 0:00:50]} g6 {[%emt 0:00:38]} 4. Nf3 {[%emt 0:00:32]} Bg7 {[%emt 0:00:10]} 5. d4 {[%emt 0:00:14]} Nf6 {[%emt 0:01:06]} 6. Nc3 {[%emt 0:02:24]} O-O {[%emt 0:00:44]} 7. Bd3 {[%emt 0:00:38]} Bf5 {[%emt 0:01:31]} 8. O-O {[%emt 0:06:06]} Bxd3 {[%emt 0:03:19]} 9. Qxd3 {[%emt 0:00:06]} e6 {[%emt 0:01:53]} 10. b3 {[%emt 0:02:16]} Nbd7 {[%emt 0:14:38]} 11. Ba3 {[%emt 0:02:52]} Re8 {[%emt 0:00:06]} 12. Bd6 {[%emt 0:00:39]} Ne4 {[%emt 0:03:06]} 13. Ba3 {[%emt 0:00:29]} Ndf6 {[%emt 0:02:24]} 14. Bb2 {[%emt 0:05:32]} Rc8 {[%emt 0:03:03]} 15. Rfd1 {[%emt 0:04:29]} a6 {[%emt 0:06:47]} 16. Nd2 {[%emt 0:02:06]} Nxd2 {[%emt 0:01:01]} 17. Rxd2 {[%emt 0:00:04]} b5 {[%emt 0:00:45]} 18. c5 {[%emt 0:02:11]} a5 {[%emt 0:03:30]} 19. a4 {[%emt 0:08:45]} b4 {[%emt 0:00:11]} 20. Nd1 {[%emt 0:00:13]} Ne4 {[%emt 0:02:14]} 21. Rc2 {[%emt 0:00:20]} g5 {[%emt 0:05:31]} 22. Nf2 {[%emt 0:04:17]} gxf4 {[%emt 0:01:16]} 23. Nxe4 {[%emt 0:01:17]} dxe4 {[%emt 0:00:01]} 24. Qxe4 {[%emt 0:00:02]} fxe3 {[%emt 0:00:22]} 25. Qxe3 {[%emt 0:02:18]} Qd5 {[%emt 0:03:13]} 26. Rf1 {[%emt 0:03:06]} Rcd8 {[%emt 0:01:59]} 27. Rc4 {[%emt 0:02:32]} Qh5 {[%emt 0:04:50]} 28. Qf3 {[%emt 0:01:08]} Qxf3 {[%emt 0:00:24]} 29. Rxf3 {[%emt 0:00:13]} Rd5 {[%emt 0:00:31]} 30. Re3 {[%emt 0:04:45]} Red8 {[%emt 0:09:03]} 31. Re4 {[%emt 0:01:34]} Kf8 {[%emt 0:02:03]} 32. Kf2 {[%emt 0:00:54]} Ke7 {[%emt 0:00:49]} 33. Ke3 {[%emt 0:01:01]} Rh5 {[%emt 0:04:19]} 34. Kd3 {[%emt 0:05:50]} Rxh2 {[%emt 0:00:29]} 35. Rc2 {[%emt 0:00:36]} Rh5 {[%emt 0:01:32]} 36. g4 {[%emt 0:00:38]} Rh3+ {[%emt 0:00:44]} 37. Kc4 {[%emt 0:00:02]} h5 {[%emt 0:04:06]} 38. g5 {[%emt 0:00:43]} Rd5 {[%emt 0:00:48]} 39. Bc1 {[%emt 0:00:04]} Rf5 {[%emt 0:01:21]} 40. Bf4 {[%emt 0:00:00]} Kd7 {[%emt 0:00:00]} 41. Be3 {[%emt 0:04:56]} Rff3 {[%emt 0:04:07]} 42. Re2 {[%emt 0:00:06]} Bf8 {[%emt 0:01:55]} 43. Kd3 {[%emt 0:04:50]} Be7 {[%emt 0:00:41]} 44. Kd2 {[%emt 0:00:02]} Rxe3 {[%emt 0:00:17]} 45. R4xe3 {[%emt 0:00:47]} Bxg5 {[%emt 0:00:11]} 46. Kd3 {[%emt 0:00:13]} Rxe3+ {[%emt 0:00:07]} 47. Rxe3 {[%emt 0:00:06]} Bxe3 {[%emt 0:00:07]} 48. Kxe3 {[%emt 0:00:05]} Ke7 {[%emt 0:00:17]} 0-1

[Event "Anderssen Festival 2019"]
[Site "Wroclaw"]
[Date "2019.08.09"]
[Round "7.6"]
[White "Piekielny, Pawel"]
[Black "Mitchell, Martin"]
[Result "1-0"]
[ECO "B07"]
[WhiteElo "1985"]
[BlackElo "2218"]
[Annotator "NA"]
[PlyCount "127"]
[EventDate "2019.08.05"]
[EventType "swiss"]
[EventCountry "POL"]
[SourceTitle "playchess.com"]
[Source "ChessBase"]
[SourceQuality "1"]
[TimeControl "40/5400+30:900+30"]

1. e4 d6 2. d4 Nf6 3. Nc3 g6 4. Bg5 c6 5. Qd2 Nbd7 6. f4 d5 7. Bxf6 Nxf6 8. e5 Nh5 9. Be2 Ng7 10. Nf3 Bg4 11. O-O-O h5 12. g3 Nf5 13. Ng5 Bxe2 14. Nxe2 e6 15. h3 c5 16. g4 Nxd4 17. Nxd4 cxd4 18. Qxd4 Qc7 19. Kb1 Be7 20. Nf3 Bc5 21. Qd3 O-O-O 22. Ng5 Rd7 23. Rhf1 Kb8 24. f5 exf5 25. e6 fxe6 26. Nxe6 Qd6 27. Nxc5 Qxc5 28. gxf5 gxf5 29. Rxf5 h4 30. Rxd5 Rxd5 31. Qxd5 Qxd5 32. Rxd5 Rg8 33. a4 Rg3 34. Rd3 a5 35. Ka2 Kc7 36. Kb3 Kc6 37. Kc4 Rg2 38. Rc3 b5+ 39. axb5+ Kb6 40. Kd5 Kxb5 41. Rc5+ Kb6 42. Rc3 Rg3 43. Kc4 Rg2 44. Kb3 Rg3 45. Rd3 Kb5 46. Ka3 Rg2 47. Rd5+ Kb6 48. c4 Rg3+ 49. Ka4 Rxh3 50. Rxa5 Rh2 51. Rb5+ Kc6 52. b4 Rc2 53. Kb3 Rc1 54. Rh5 Rb1+ 55. Ka3 Ra1+ 56. Kb2 Rh1 57. Rh6+ Kb7 58. Kb3 h3 59. Ka4 Kc7 60. Kb5 h2 61. c5 Kd8 62. Rh7 Ke8 63. c6 Kd8 64. Kb6 1-0

[Event "Anderssen Festival 2019"]
[Site "Wroclaw"]
[Date "2019.08.09"]
[Round "7.7"]
[White "Chernyshov, Konstantin"]
[Black "Kawalko, Adam"]
[Result "1-0"]
[ECO "D02"]
[WhiteElo "2446"]
[BlackElo "1920"]
[Annotator "NA"]
[PlyCount "27"]
[EventDate "2019.08.05"]
[EventType "swiss"]
[EventCountry "POL"]
[SourceTitle "playchess.com"]
[Source "ChessBase"]
[SourceQuality "1"]
[TimeControl "40/5400+30:900+30"]

1. d4 {[%emt 0:00:00]} d5 {[%emt 0:00:00]} 2. Nf3 {[%emt 0:00:00]} Bf5 {[%emt 0:00:43]} 3. c4 {[%emt 0:00:01]} c6 {[%emt 0:01:35]} 4. cxd5 {[%emt 0:01:39]} cxd5 {[%emt 0:00:52]} 5. Qb3 {[%emt 0:00:25]} b6 {[%emt 0:01:39]} 6. Nc3 {[%emt 0:02:18]} e6 {[%emt 0:02:48]} 7. e4 {[%emt 0:00:50]} dxe4 {[%emt 0:02:21]} 8. Bb5+ {[%emt 0:01:04]} Ke7 {[%emt 0:06:25]} 9. Ne5 {[%emt 0:01:04]} Bg6 {[%emt 0:02:07]} 10. Bc6 {[%emt 0:00:53]} Qxd4 {[%emt 0:03:17]} 11. Bf4 {[%emt 0:01:51]} f6 {[%emt 0:02:38]} 12. Qa3+ {[%emt 0:01:58]} Qc5 {[%emt 0:00:39]} 13. Qxc5+ {[%emt 0:00:15]} bxc5 {[%emt 0:00:04]} 14. Nxg6+ {[%emt 0:00:07]} 1-0

[Event "Anderssen Festival 2019"]
[Site "Wroclaw"]
[Date "2019.08.09"]
[Round "7.8"]
[White "Piotrowski, Przemyslaw"]
[Black "Jablonska, Sabina"]
[Result "1-0"]
[ECO "B40"]
[WhiteElo "2273"]
[BlackElo "1963"]
[Annotator "NA"]
[PlyCount "67"]
[EventDate "2019.08.05"]
[EventType "swiss"]
[EventCountry "POL"]
[SourceTitle "playchess.com"]
[Source "ChessBase"]
[SourceQuality "1"]
[TimeControl "40/5400+30:900+30"]

1. e4 c5 2. Nf3 e6 3. d3 Nc6 4. g3 g6 5. Bg2 Bg7 6. O-O Nge7 7. c3 d5 8. Nbd2 O-O 9. Re1 Qc7 10. Nf1 Rd8 11. Qe2 d4 12. cxd4 cxd4 13. e5 b5 14. g4 f6 15. exf6 Bxf6 16. Ng3 Nd5 17. Ne4 Bg7 18. Bg5 Re8 19. Rac1 Bd7 20. Qd2 Rac8 21. Bh6 e5 22. Qg5 Be6 23. Rxc6 Qxc6 24. Bxg7 Kxg7 25. Qxe5+ Kg8 26. Nd6 Bf7 27. Nxe8 Rxe8 28. Qxd4 Rxe1+ 29. Nxe1 Qc1 30. Bxd5 Qxe1+ 31. Kg2 Qe2 32. Bxf7+ Kxf7 33. Qxa7+ Kg8 34. Qd4 1-0

[Event "Anderssen Festival 2019"]
[Site "Wroclaw"]
[Date "2019.08.09"]
[Round "7.9"]
[White "Snihur, Piotr"]
[Black "Socha, Kamil"]
[Result "1/2-1/2"]
[ECO "E18"]
[WhiteElo "2256"]
[BlackElo "1741"]
[Annotator "NA"]
[PlyCount "33"]
[EventDate "2019.08.05"]
[EventType "swiss"]
[EventCountry "POL"]
[SourceTitle "playchess.com"]
[Source "ChessBase"]
[SourceQuality "1"]
[TimeControl "40/5400+30:900+30"]

1. d4 Nf6 2. c4 e6 3. Nf3 b6 4. g3 Bb7 5. Bg2 Be7 6. Nc3 O-O 7. O-O Ne4 8. Nxe4 Bxe4 9. Bf4 d6 10. Qd2 Nd7 11. Rfd1 f5 12. Ng5 Bxg5 13. Bxg5 Qe8 14. Bf1 h6 15. Be3 Bb7 16. Rac1 Rd8 17. Qc2 1/2-1/2

[Event "Anderssen Festival 2019"]
[Site "Wroclaw"]
[Date "2019.08.09"]
[Round "7.10"]
[White "Korpalski, Maciej"]
[Black "Nguyen, Alex Dac-Vuong"]
[Result "0-1"]
[ECO "C00"]
[WhiteElo "1954"]
[BlackElo "2267"]
[Annotator "NA"]
[PlyCount "90"]
[EventDate "2019.08.05"]
[EventType "swiss"]
[EventCountry "POL"]
[SourceTitle "playchess.com"]
[Source "ChessBase"]
[SourceQuality "1"]
[TimeControl "40/5400+30:900+30"]

1. e4 e6 2. d3 d5 3. Nd2 Nf6 4. Ngf3 b6 5. g3 dxe4 6. dxe4 Bb7 7. Qe2 Nc6 8. c3 a5 9. Bg2 e5 10. O-O Ba6 11. Nc4 h6 12. b3 Bc5 13. a3 O-O 14. Rb1 Bb5 15. a4 Ba6 16. Bd2 Qe7 17. Nh4 Qe6 18. Nf5 Bxc4 19. bxc4 Kh8 20. Be3 Bxe3 21. Nxe3 Nd7 22. Nd5 Ra7 23. f4 f6 24. Bf3 Qd6 25. Bg4 Rd8 26. Bxd7 Qxd7 27. Rfd1 Qd6 28. Kg2 Qf8 29. Rb5 Rb7 30. Rdb1 Rdb8 31. R5b2 Re8 32. f5 Nb8 33. Qf2 Nd7 34. Qc2 Qc5 35. Qe2 Qc6 36. Rb5 Nc5 37. Qc2 Qd6 38. Rd1 Qf8 39. Rb2 Rd8 40. Kf3 Qe8 41. Ra1 Qh5+ 42. Kg2 Qg4 43. Re1 c6 44. h3 Qg5 45. Qe2 h5 0-1